lending/lending_fUSD_20241025
["ID","MTS","AMOUNT","RATE_DAILY","PERIOD"]
[340791393,1729829437832,-150.0,0.00043737,2]
[340791394,1729829437843,-150.0,0.00043737,2]
[340791395,1729829437852,-413.73454414,0.00043738,2]
[340791396,1729829437862,-348.63,0.00043742,10]
[340791397,1729829437872,-150.0,0.00043742,2]
[340791398,1729829437882,-150.0,0.00043745,2]
[340791399,1729829437891,-150.0,0.00043746,2]
[340791400,1729829437900,-150.0,0.00043747,2]
[340791401,1729829437910,-567.83491177,0.00043747,7]
[340791402,1729829437922,-902.44020382,0.00043747,7]
[340791416,1729829439591,-552.33090042,0.00041209,2]
[340791417,1729829439603,-447.66909958,0.00041209,2]
[340791418,1729829439613,-1213.99166003,0.00043747,7]
[340791419,1729829439624,-448.41966153,0.00043747,7]
[340791420,1729829439635,-32832.40933508,0.00043747,7]
[340791421,1729829439698,-4854.5,0.00043747,7]
[340791422,1729829439710,-429.15446819,0.00043747,7]
[340791423,1729829439753,-388.8658327,0.00043747,7]
[340791424,1729829439765,-554.38791357,0.00043747,7]
[340791425,1729829439861,-507.26572522,0.00041295,2]
[340791426,1729829439872,-492.73427478,0.00041295,2]
[340791427,1729829439882,-571.72170112,0.00043747,7]
[340791675,1729829442539,-228.66208687,0.00043681,7]
[340791677,1729829442550,-579.53055474,0.00043747,7]
[340791679,1729829442561,-1313.25375745,0.00043747,7]
[340791681,1729829442571,-150.0,0.00043752,2]
[340791683,1729829442580,-150.0,0.00043753,2]
[340791685,1729829442590,-150.0,0.00043756,2]
[340791687,1729829442600,-150.0,0.00043763,2]
[340791689,1729829442610,-150.0,0.0004377,2]
[340791691,1729829442619,-150.0,0.00043776,2]
[340791693,1729829442630,-150.0,0.00043777,2]
[340791695,1729829442639,-150.0,0.00043785,2]
[340791697,1729829442649,-150.0,0.00043785,2]
[340791699,1729829442658,-150.0,0.00043792,2]
[340791701,1729829442668,-1797.29,0.000438,7]
[340791703,1729829442677,-150.0,0.00043806,2]
[340791705,1729829442687,-150.0,0.00043808,2]
[340791707,1729829442698,-150.0,0.00043809,2]
[340791709,1729829442709,-150.0,0.0004381,2]
[340791724,1729829442835,-150.0,0.00043814,2]
[340791726,1729829442846,-150.0,0.00043815,2]
[340791728,1729829442855,-150.0,0.0004382,2]
[340791730,1729829442865,-150.0,0.00043828,2]
[340791732,1729829442875,-150.0,0.0004383,2]
[340791734,1729829442884,-150.0,0.00043835,2]
[340791736,1729829442895,-150.0,0.00043838,2]
[340791738,1729829442906,-150.0,0.00043839,2]
[340791740,1729829442916,-150.0,0.00043847,2]
[340791743,1729829442927,-150.0,0.00043848,2]
[340791745,1729829442938,-150.0,0.00043852,2]
[340791747,1729829442948,-150.0,0.00043855,2]
[340791749,1729829442960,-150.0,0.00043857,2]
[340791751,1729829442970,-150.0,0.00043857,2]
[340791753,1729829442981,-150.0,0.00043861,2]
[340791756,1729829442994,-150.0,0.00043868,2]
[340791758,1729829443005,-150.0,0.0004387,2]
[340791760,1729829443015,-150.0,0.00043871,2]
[340791762,1729829443026,-150.0,0.00043875,2]
[340791764,1729829443037,-150.0,0.00043875,2]
[340791767,1729829443048,-150.0,0.00043877,2]
[340791769,1729829443058,-150.0,0.00043879,2]
[340791771,1729829443068,-150.0,0.00043879,2]
[340791773,1729829443078,-150.0,0.0004388,2]
[340791775,1729829443090,-150.0,0.00043882,2]
[340791777,1729829443101,-150.0,0.00043884,2]
[340791779,1729829443113,-150.0,0.00043885,2]
[340791782,1729829443122,-150.0,0.00043885,2]
[340791784,1729829443135,-150.0,0.00043903,2]
[340791786,1729829443146,-150.0,0.00043903,2]
[340791788,1729829443155,-150.0,0.00043904,2]
[340791790,1729829443167,-150.0,0.00043908,2]
[340791792,1729829443179,-150.0,0.00043912,2]
[340791795,1729829443189,-150.0,0.00043915,2]
[340791797,1729829443199,-150.0,0.00043916,2]
[340791799,1729829443208,-150.0,0.00043917,2]
[340791801,1729829443218,-150.0,0.00043917,2]
[340791803,1729829443229,-150.0,0.00043918,2]
[340791805,1729829443239,-150.0,0.00043918,2]
[340791807,1729829443249,-150.0,0.00043918,2]
[340791809,1729829443258,-150.0,0.00043918,2]
[340791811,1729829443268,-150.0,0.00043922,2]
[340791813,1729829443277,-150.0,0.00043924,2]
[340791815,1729829443287,-150.0,0.00043925,2]
[340791817,1729829443297,-150.0,0.00043929,2]
[340791819,1729829443307,-150.0,0.00043933,2]
[340791821,1729829443316,-150.0,0.00043934,2]
[340791823,1729829443326,-150.0,0.00043941,2]
[340791825,1729829443336,-150.0,0.00043941,2]
[340791827,1729829443345,-150.0,0.00043943,2]
[340791829,1729829443355,-150.0,0.00043944,2]
[340791831,1729829443365,-150.0,0.00043944,2]
[340791833,1729829443375,-150.0,0.0004395,7]
[340791835,1729829443384,-150.0,0.00043951,2]
[340791837,1729829443393,-150.0,0.00043958,2]
[340791839,1729829443404,-150.0,0.00043959,2]
[340791841,1729829443413,-150.0,0.00043963,7]
[340791843,1729829443423,-150.0,0.00043969,2]
[340791845,1729829443432,-150.0,0.00043969,2]
[340791847,1729829443442,-150.0,0.0004397,2]
[340791849,1729829443451,-150.0,0.00043975,2]
[340791851,1729829443461,-150.0,0.00043982,2]
[340791853,1729829443470,-150.0,0.00043985,2]
[340791855,1729829443480,-150.0,0.00043986,2]
[340791857,1729829443490,-150.0,0.00043991,2]
[340791859,1729829443500,-150.0,0.00043996,2]
[340791861,1729829443509,-150.0,0.00043996,2]
[340791863,1729829443519,-2000.0,0.00044,2]
[340791865,1729829443528,-1000.0,0.00044,7]
[340791867,1729829443537,-150.0,0.00044019,2]
[340791869,1729829443546,-159.27874721,0.00044024,7]
[340791871,1729829443556,-150.0,0.00044036,2]
[340791873,1729829443566,-479.0,0.00044047,7]
[340791875,1729829443577,-150.0,0.00044047,2]
[340791877,1729829443586,-150.0,0.00044048,2]
[340791879,1729829443596,-150.0,0.00044049,2]
[340791881,1729829443605,-150.0,0.00044059,2]
[340791883,1729829443614,-150.0,0.00044069,2]
[340791885,1729829443624,-150.0,0.00044079,2]
[340791887,1729829443634,-150.0,0.00044081,2]
[340791889,1729829443643,-150.0,0.00044108,2]
[340791891,1729829443653,-150.0,0.00044115,2]
[340791893,1729829443662,-150.0,0.00044116,2]
[340791895,1729829443672,-150.0,0.00044119,2]
[340791897,1729829443682,-150.0,0.00044122,2]
[340791899,1729829443691,-150.0,0.00044126,2]
[340791901,1729829443703,-150.0,0.00044127,2]
[340791903,1729829443713,-150.0,0.00044128,2]
[340791905,1729829443722,-297.89,0.00044129,2]
[340791907,1729829443731,-150.0,0.00044134,2]
[340791909,1729829443740,-150.0,0.00044149,2]
[340791911,1729829443749,-150.0,0.0004415,7]
[340791913,1729829443759,-150.0,0.0004417,7]
[340791915,1729829443768,-6359.06967716,0.00044185,15]
[340791917,1729829443777,-190.0,0.000442,31]
[340791919,1729829443786,-150.0,0.000442,58]
[340791921,1729829443795,-150.0,0.0004421,2]
[340791923,1729829443804,-150.0,0.00044211,2]
[340791925,1729829443813,-200.0,0.00044221,7]
[340791927,1729829443823,-261.0,0.00044221,7]
[340791929,1729829443832,-261.0,0.00044221,7]
[340791931,1729829443843,-261.0,0.00044221,7]
[340791933,1729829443852,-261.0,0.00044221,7]
[340791935,1729829443861,-261.0,0.00044221,7]
[340791937,1729829443870,-261.0,0.00044221,7]
[340791939,1729829443880,-261.0,0.00044221,7]
[340791941,1729829443890,-261.0,0.00044221,7]
[340791943,1729829443899,-261.0,0.00044221,7]
[340791944,1729829443908,-261.0,0.00044221,7]
[340791946,1729829443918,-261.0,0.00044221,7]
[340791948,1729829443928,-272.63517906,0.00044221,7]
[340791950,1729829443937,-65888.65834583,0.000445,7]
[340791953,1729829443950,-7024.43178761,0.000445,7]
[340791956,1729829443969,-1000.0,0.00041448,2]
[340791958,1729829443980,-38596.31609722,0.000445,7]
[340791960,1729829443992,-514.20346541,0.000445,7]
[340791962,1729829444003,-5997.73900006,0.000445,7]
[340791964,1729829444014,-2495.09204276,0.000445,7]
[340791967,1729829444028,-8032.59255031,0.000445,7]
[340791969,1729829444040,-1437.8740841,0.000445,7]
[340791971,1729829444052,-23526.6926267,0.000445,7]
[340791973,1729829444062,-308.162174,0.00044707,2]
[340791975,1729829444071,-2394.4772719,0.00044738,2]
[340791977,1729829444081,-14725.0942333,0.00044769,2]
[340791979,1729829444091,-36398.56572044,0.00044769,2]
[340792121,1729829445481,-150.0,0.00044521,2]
[340792123,1729829445490,-3266.00354531,0.00044769,2]
[340792134,1729829445591,-150.0,0.00044551,2]
[340792136,1729829445601,-3411.9738,0.00044769,2]
[340792141,1729829445643,-25112.35148279,0.00044769,2]
[340792148,1729829445706,-602.25688332,0.00044769,2]
[340792181,1729829962646,200.0,0.00042773,30]
[340792182,1729830006764,306.0076767,0.00042773,30]
[340792183,1729830137489,294.02406354,0.00017244,2]
[340792185,1729830181244,300.0,0.00019725,2]
[340792186,1729830234541,-12554.6873,0.00023272,2]
[340792187,1729830308334,15.97593646,0.00014,2]
[340792188,1729830402576,-497.98019416,0.00013999,2]
[340792189,1729830402599,-500.0,0.00013999,2]
[340792190,1729830402620,-500.0,0.00013999,2]
[340792191,1729830402643,-358.02537281,0.00013999,2]
[340792192,1729830402669,-500.0,0.00013999,2]
[340792193,1729830402692,-500.0,0.00013999,2]
[340792194,1729830402714,-432.91638898,0.00013999,2]
[340792195,1729830402737,-66009.07804405,0.00014,2]
[340792238,1729830631553,-150.0,0.00013999,2]
[340792240,1729830631563,-70849.99996014,0.00014,2]
[340792242,1729830631574,-100572.0000013,0.00014,2]
[340792245,1729830631607,-500.0,0.00014,2]
[340792246,1729830631618,-677.83,0.00014,2]
[340792247,1729830631767,-138783.16775665,0.00014,2]
[340792248,1729830631777,-16345.51624854,0.00014,2]
[340792249,1729830631788,-1981.09,0.00014,2]
[340792250,1729830631834,-2527.75,0.00014,2]
[340792251,1729830631890,-6777.0,0.00014,2]
[340792267,1729830637681,-9338.21733965,0.0001399,2]
[340792268,1729830637691,-431336.35066019,0.00014,2]
[340792269,1729830637701,-417.01472318,0.00014,2]
[340792270,1729830637949,-353.3982126,0.00014,2]
[340792271,1729830638005,-2497.495,0.00014,2]
[340792292,1729830639659,-574.0,0.00014,2]
[340792295,1729830639672,-542.2,0.00014,2]
[340792301,1729830639771,-3469.13831216,0.00014,2]
[340792313,1729830639880,-999.9113796,0.00014,2]
[340792314,1729830640044,-192921.07016391,0.00014,2]
[340792339,1729830642777,-4667.7622301,0.00014,2]
[340792340,1729830642944,-9.32192588,0.00014,2]
[340792341,1729830642994,-77352.99202634,0.00014,2]
[340792344,1729830645562,-8517.78736935,0.00014,2]
[340792345,1729830645574,-5988.73650659,0.00014,2]
[340792346,1729830645618,-1694.25,0.00014,2]
[340792347,1729830645678,-57028.10901826,0.00014,2]
[340792348,1729830645734,-806.41047797,0.00014,2]
[340792351,1729831020146,250.0,0.0001,2]
[340792352,1729831023422,-300.0,0.00012,2]
[340792353,1729831086190,500.00000001,0.00042761,30]
[340792372,1729831831990,-178.56705682,0.0001372,2]
[340792373,1729831831999,-1030.496,0.0001372,2]
[340792374,1729831832009,-300.0,0.00013899,2]
[340792375,1729831832018,-1083.9308,0.000139,2]
[340792376,1729831832026,-5114.209,0.000139,2]
[340792377,1729831832036,-6659.53106758,0.000139,2]
[340792378,1729831832045,-152.42658806,0.000139,2]
[340792379,1729831832054,-1541.00984489,0.000139,2]
[340792380,1729831832063,-1776.89140314,0.00013989,2]
[340792381,1729831832072,-150.0,0.00013989,2]
[340792382,1729831832081,-183.99784003,0.0001399,2]
[340792383,1729831832090,-18304.9653514,0.00014,2]
[340792384,1729831832102,-235376.56780424,0.00014,2]
[340792401,1729831838107,-1660.33590238,0.00014,2]
[340792402,1729831838123,-992.07870645,0.00014,2]
[340792438,1729831839775,-518.21876778,0.00014,2]
[340792576,1729831842849,-2295.07244071,0.00014,2]
[340792577,1729831842905,-2492.40000003,0.00014,2]
[340792578,1729831842959,-3002.80636762,0.00014,2]
[340792604,1729831845946,-2633.52661891,0.00014,2]
[340792605,1729831845959,-658.07952203,0.00014,2]
[340792650,1729832109860,152.86018751,0.00042834,30]
[340792651,1729832348654,-178.42,0.00012595,2]
[340792652,1729832348676,-5993.57796084,0.000139,2]
[340792653,1729832348703,-1768.00203916,0.0001399,2]
[340792654,1729832422003,150.0,0.0004283,30]
[340792655,1729832436255,-3300.0,0.0001399,2]
[340792656,1729832642516,5000.0,0.0004283,30]
[340792657,1729832710226,-2013.0,0.00012,2]
[340792658,1729832710248,-633.68,0.0001262,2]
[340792659,1729832710268,-152.42658803,0.000139,2]
[340792660,1729832710291,-300.0,0.00013999,2]
[340792661,1729832710312,-50100.89341197,0.00014,2]
[340792662,1729832831288,250.0,0.0001,2]
[340792663,1729832833776,-300.0,0.00012,2]
[340792678,1729833032026,-253.36,0.00013248,2]
[340792679,1729833032036,-1855.41,0.00013312,2]
[340792680,1729833032045,-150.0,0.00013383,2]
[340792681,1729833032055,-980.40976613,0.00013395,2]
[340792682,1729833032083,-1770.59023387,0.00013395,2]
[340792683,1729833032092,-1182.37724129,0.00013554,2]
[340792684,1729833032100,-150.0,0.00013554,2]
[340792685,1729833032109,-500.0,0.00013599,2]
[340792686,1729833032119,-3189.6,0.00013648,2]
[340792687,1729833032127,-250.0,0.00013697,2]
[340792688,1729833032137,-3252.26100984,0.00013699,2]
[340792689,1729833032148,-3169.31899016,0.00013699,2]
[340792690,1729833032157,-200.0,0.00013832,2]
[340792691,1729833032166,-500.0,0.00013853,2]
[340792692,1729833032175,-470.15,0.00013861,2]
[340792693,1729833032185,-5394.22016472,0.000139,2]
[340792694,1729833032195,-1224.71,0.000139,2]
[340792695,1729833032203,-3655.12763841,0.00013964,2]
[340792696,1729833032214,-174.56236159,0.00013964,2]
[340792697,1729833032223,-635.8,0.00013964,2]
[340792698,1729833032232,-1180.86010014,0.00013978,2]
[340792700,1729833037949,-674.54989986,0.00013978,2]
[340792702,1729833037958,-465.88836657,0.0001399,2]
[340792703,1729833038258,-569.51914548,0.0001399,2]
[340792704,1729833038328,-6796.03369209,0.0001399,2]
[340792705,1729833038438,-1079.14192993,0.0001399,2]
[340792737,1729833040020,-10240.86409603,0.0001399,2]
[340792738,1729833040030,-500.0,0.00013999,2]
[340792739,1729833040041,-428.34222932,0.00013999,2]
[340792740,1729833040051,-500.0,0.00013999,2]
[340792741,1729833040060,-500.0,0.00013999,2]
[340792742,1729833040069,-500.0,0.00013999,2]
[340792743,1729833040079,-434.38069706,0.00013999,2]
[340792744,1729833040091,-272258.06177759,0.00014,2]
[340792745,1729833040103,-1246.0,0.00014,2]
[340792746,1729833040297,-374.98912177,0.00014,2]
[340792757,1729833043134,-824.84627606,0.00014,2]
[340792758,1729833043146,-680.74930416,0.00014,2]
[340792759,1729833043299,-786.9921519,0.00014,2]
[340792760,1729833045934,-627.85680892,0.00014,2]
[340792762,1729833049645,-601.99,0.00011868,2]
[340792765,1729833540316,-659.39,0.00011417,2]
[340792766,1729833769020,17225.6223747,0.0001,2]
[340792767,1729833968236,601.24816124,0.0001,2]
[340792768,1729833993175,3219.28,0.0001115,2]
[340792769,1729834055383,626.42,0.00010582,2]
[340792770,1729834069378,294.48391961,0.00022,120]
[340792771,1729834084931,100000.0,0.0001399,3]
[340792772,1729834087370,1840.17994629,0.00013,4]
[340792773,1729834162093,-1760.2,0.00012428,2]
[340792774,1729834162116,-200.85683739,0.00012476,2]
[340792775,1729834162138,-856.39446794,0.00012486,2]
[340792793,1729834232244,-200.0,0.00012324,2]
[340792794,1729834232253,-155.61,0.00012376,2]
[340792795,1729834232271,-4246.11,0.00012384,2]
[340792796,1729834232281,-256.84553206,0.00012486,2]
[340792797,1729834232290,-875.37,0.000125,2]
[340792798,1729834232300,-6585.1631,0.00012516,2]
[340792799,1729834232309,-597.55,0.00012527,2]
[340792800,1729834232318,-166.78,0.00012576,2]
[340792801,1729834232328,-605.59232068,0.00012579,2]
[340792802,1729834232337,-1109.3,0.00012616,2]
[340792803,1729834232346,-626.42,0.00012846,2]
[340792804,1729834232355,-300.0,0.00012898,2]
[340792805,1729834232364,-1103.86377264,0.00012899,2]
[340792806,1729834232373,-86.39527464,0.00012899,2]
[340792807,1729834235614,-771.71,0.00012287,2]
[340792808,1729834235626,-913.59472536,0.00012899,2]
[340792809,1729834235638,-473.1,0.00012899,2]
[340792810,1729834235649,-604.05,0.00012899,2]
[340792811,1729834235659,-166.51,0.00013019,2]
[340792812,1729834235669,-150.0,0.00013019,2]
[340792813,1729834235681,-513.05,0.00013055,2]
[340792814,1729834235693,-1225.57,0.00013055,2]
[340792815,1729834235703,-5763.89352314,0.00013055,2]
[340792853,1729834238239,-2500.0,0.00013055,2]
[340792854,1729834238402,-1736.09647686,0.00013055,2]
[340792855,1729834238412,-327.87,0.00013055,2]
[340792856,1729834238421,-7897.66982982,0.00013055,2]
[340792857,1729834238433,-4387.47017018,0.00013055,2]
[340792858,1729834238443,-1099.71,0.00013055,2]
[340792859,1729834238453,-1000.0,0.00013069,2]
[340792860,1729834238462,-510.05574393,0.00013073,2]
[340792861,1729834238472,-250.0,0.00013076,2]
[340792862,1729834238481,-520.06,0.00013095,2]
[340792863,1729834238492,-5209.86,0.00013095,2]
[340792864,1729834238501,-9997.6,0.00013095,2]
[340792865,1729834238510,-617.88,0.00013095,2]
[340792866,1729834238520,-684.85124423,0.00013111,2]
[340792867,1729834238535,-428.38875577,0.00013111,2]
[340792868,1729834238544,-390.38624423,0.00013118,2]
[340792869,1729834238589,-570.21108474,0.00013118,2]
[340792870,1729834238607,-747.25267103,0.00013118,2]
[340792871,1729834238616,-4924.87,0.00013185,2]
[340792872,1729834238625,-7373.26402272,0.00013207,2]
[340792873,1729834238638,-316.62500066,0.00013207,2]
[340792874,1729834238649,-824.32097662,0.00013207,2]
[340792875,1729834238658,-163.13646263,0.00013207,2]
[340792887,1729834240319,-136.85353737,0.00013207,2]
[340792888,1729834240329,-138.68089653,0.00013207,2]
[340792889,1729834240493,-12.30910347,0.00013207,2]
[340792890,1729834240504,-250.0,0.00013235,2]
[340792891,1729834240513,-250.0,0.00013235,2]
[340792892,1729834240523,-5740.65230342,0.00013247,2]
[340792893,1729834240536,-18159.34769658,0.00013247,2]
[340792894,1729834240545,-324.46,0.00013247,2]
[340792896,1729834240555,-486.728,0.00013247,2]
[340792898,1729834240565,-486.728,0.00013247,2]
[340792900,1729834240575,-486.728,0.00013247,2]
[340792902,1729834240584,-486.728,0.00013247,2]
[340792904,1729834240593,-486.728,0.00013247,2]
[340792906,1729834240602,-486.728,0.00013247,2]
[340792907,1729834240611,-486.728,0.00013247,2]
[340792909,1729834240620,-486.728,0.00013247,2]
[340792911,1729834240629,-486.728,0.00013247,2]
[340792913,1729834240642,-486.728,0.00013247,2]
[340792915,1729834240652,-418.1655,0.0001326,2]
[340792917,1729834240661,-201.75,0.00013268,2]
[340792919,1729834240670,-152.77211455,0.00013273,2]
[340792921,1729834240679,-454.74,0.00013455,2]
[340792923,1729834240688,-165.71,0.00013546,2]
[340792925,1729834240698,-463.79,0.00013699,2]
[340792927,1729834240707,-2351.43,0.00013699,2]
[340792929,1729834240716,-200.0,0.00013699,2]
[340792931,1729834240725,-1113.24,0.00013735,2]
[340792933,1729834240735,-168.27409619,0.000139,2]
[340792935,1729834240744,-163.51811723,0.000139,2]
[340792937,1729834240753,-9610.58584373,0.000139,2]
[340792939,1729834240762,-181.2013319,0.000139,2]
[340792941,1729834240771,-381.85519502,0.000139,2]
[340792942,1729834240781,-182.11797446,0.00013921,2]
[340792944,1729834240790,-7951.27857997,0.00013921,2]
[340792946,1729834240799,-270.48674412,0.00013989,2]
[340792948,1729834240808,-96614.515042,0.0001399,3]
[340792950,1729834240818,-507.01550908,0.00013999,2]
[340792952,1729834240827,-350.0,0.00014,2]
[340792954,1729834240837,-407275.39875648,0.00014,2]
[340793176,1729834244315,-150.0,0.00012376,2]
[340793177,1729834244324,-123418.09961507,0.00014,2]
[340793181,1729834246049,-1269.51983804,0.00014,2]
[340793182,1729834246060,-13505.9,0.00014,2]
[340793183,1729834246111,-262.58001688,0.00014,2]
[340793184,1729834246172,-267.98414898,0.00014,2]
[340793185,1729834246404,-2854.67068721,0.00014,2]
[340793186,1729834246416,-1417.56443875,0.00014,2]
[340793187,1729834246428,-374.00008824,0.00014,2]
[340793189,1729834246440,-20743.185766,0.00014,2]
[340793191,1729834246451,-581.02513369,0.00014,2]
[340793193,1729834246463,-899.97856835,0.00014,2]
[340793195,1729834246474,-3975.80907621,0.00014,2]
[340793197,1729834246486,-2026.77504163,0.00014,2]
[340793199,1729834246497,-514.46253332,0.00014,2]
[340793202,1729834246509,-1546.58900404,0.00014,2]
[340793204,1729834246524,-2757.29232945,0.00014,2]
[340793215,1729834490328,284.36,0.00010798,2]
[340793216,1729834646762,250.0,0.0001,2]
[340793217,1729834648600,-300.0,0.00012,2]
[340793218,1729834694873,596.13,0.00011111,2]
[340793219,1729835240246,566.32,0.00010704,2]
[340793227,1729835432333,-2199.94549803,0.00012435,2]
[340793228,1729835435790,-511.47891397,0.00012435,2]
[340793229,1729835435802,-2944.00304279,0.00012435,2]
[340793230,1729835435816,-599.75271508,0.00012435,2]
[340793231,1729835435832,-2636.2,0.00012435,2]
[340793232,1729835435847,-334.79012144,0.00012435,2]
[340793233,1729835435865,-5457.01987856,0.00012435,2]
[340793234,1729835435954,-4996.966294,0.00012435,2]
[340793258,1729835438558,-7396.519,0.00012435,2]
[340793259,1729835438615,-357.95902549,0.00012435,2]
[340793260,1729835438672,-6011.38003424,0.00012435,2]
[340793261,1729835438682,-151.9293834,0.00012487,2]
[340793262,1729835438693,-250.0,0.00012655,2]
[340793263,1729835438703,-1126.51,0.00012671,2]
[340793264,1729835438712,-445.29,0.00012751,2]
[340793265,1729835438872,-165.71,0.00012793,2]
[340793266,1729835438890,-1000.0,0.00012834,2]
[340793267,1729835438900,-250.0,0.0001285,2]
[340793268,1729835438911,-13618.48821524,0.00012866,2]
[340793269,1729835438945,400.0,0.000135,4]
[340793281,1729835440318,-442.77929856,0.00012866,2]
[340793282,1729835440329,-1199.33378667,0.00012866,2]
[340793283,1729835440379,-8639.39869953,0.00012866,2]
[340793284,1729835440389,-5347.5,0.00012866,2]
[340793285,1729835440398,-150.0,0.00012874,2]
[340793286,1729835440407,-250.0,0.00012874,2]
[340793287,1729835440417,-324.46,0.00012874,2]
[340793288,1729835440427,-9356.47,0.00012874,2]
[340793289,1729835440435,-3094.22,0.00012874,2]
[340793290,1729835440445,-566.32,0.00012967,2]
[340793291,1729835440454,-820.71,0.00013199,2]
[340793292,1729835440463,-683.6,0.00013199,2]
[340793293,1729835440471,-950.901,0.00013199,2]
[340793294,1729835440480,-177.13,0.00013302,2]
[340793295,1729835440489,-177.13,0.00013369,2]
[340793296,1729835440499,-445.29,0.00013388,2]
[340793297,1729835440508,-153.7,0.00013498,2]
[340793298,1729835440516,-185.99,0.00013649,2]
[340793299,1729835440525,-2351.43,0.00013699,2]
[340793300,1729835440535,-463.79,0.00013699,2]
[340793301,1729835440543,-200.0,0.00013699,2]
[340793302,1729835440552,-418.70182723,0.00013707,2]
[340793303,1729835440561,-820.71,0.00013858,2]
[340793304,1729835440570,-2450.480738,0.0001386,2]
[340793305,1729835440580,-8072.85865315,0.0001389,2]
[340793306,1729835440589,-486.728,0.0001389,2]
[340793307,1729835440598,-486.728,0.0001389,2]
[340793308,1729835440608,-486.728,0.0001389,2]
[340793309,1729835440617,-486.728,0.0001389,2]
[340793310,1729835440626,-486.728,0.0001389,2]
[340793311,1729835440635,-486.728,0.0001389,2]
[340793312,1729835440644,-486.728,0.0001389,2]
[340793313,1729835440653,-486.728,0.0001389,2]
[340793314,1729835440663,-486.728,0.0001389,2]
[340793315,1729835440675,-486.728,0.0001389,2]
[340793316,1729835440684,-10204.0447,0.0001389,2]
[340793317,1729835440696,-8394.5474,0.0001389,2]
[340793318,1729835440707,-1958.1619,0.0001389,2]
[340793319,1729835440717,-1956.3806,0.0001389,2]
[340793320,1729835440728,-6642.358,0.000139,2]
[340793322,1729835440737,-158.67635362,0.000139,2]
[340793323,1729835440747,-182.11797446,0.000139,2]
[340793324,1729835440756,-163.51811723,0.000139,2]
[340793325,1729835440765,-168.27409619,0.000139,2]
[340793326,1729835440775,-9610.58584373,0.000139,2]
[340793327,1729835440784,-152.77211455,0.00013973,2]
[340793329,1729835440794,-418.1655,0.00013973,2]
[340793330,1729835440806,-2129.80275895,0.0001398,3]
[340793331,1729835440818,-2555.76331074,0.0001399,3]
[340793332,1729835440828,-228.52404071,0.0001399,2]
[340793333,1729835440838,-559.46113318,0.00013999,2]
[340793334,1729835440848,-1000.0,0.00013999,2]
[340793336,1729835440858,-1000.00002783,0.00013999,2]
[340793337,1729835440867,-1000.00002783,0.00013999,2]
[340793338,1729835440879,-270.48674412,0.00013999,2]
[340793339,1729835440888,-35987.26481545,0.00014,2]
[340793340,1729835440959,-569.11505681,0.00014,2]
[340793341,1729835440980,-353.34242333,0.00014,2]
[340793342,1729835440994,-1001.50146105,0.00014,2]
[340793343,1729835441008,-374.34500001,0.00014,2]
[340793344,1729835441021,-317.04082057,0.00014,2]
[340793345,1729835441033,-2182.95917943,0.00014,2]
[340793346,1729835441045,-568932.9676474,0.00014,2]
[340793349,1729835443628,-800.0,0.000136,4]
[340793350,1729835443639,-1200.0,0.000137,5]
[340793351,1729835443649,-155.61,0.00013891,2]
[340793352,1729835443659,-1100.89652326,0.00014,2]
[340793353,1729835443719,-58.69226439,0.00014,2]
[340793354,1729835443853,-123418.09961507,0.00014,2]
[340793357,1729835446240,-1600.0,0.000138,5]